bitfinex-derivatives/quotes_ETHF0:USTF0_20260315
["timestamp","ask_amount","ask_price","bid_price","bid_amount"]
[1773618508152,0.00431037,2175.2,2174.6,0.39968628]
[1773618508446,4.31581803,2175.2,2174.7,7.94145403]
[1773618508646,4.31150766,2175.0,2174.5,0.48753152]
[1773618508853,4.31581803,2175.2,2174.7,0.48325261]
[1773618509445,4.31581803,2175.2,2174.5,0.00427891]
[1773618509446,4.31581803,2175.2,2174.8,8.03276575]
[1773618509646,4.31581803,2175.2,2174.8,0.57456433]
[1773618509846,4.31581803,2175.2,2174.8,8.03276575]
[1773618510250,4.31581803,2175.2,2174.8,7.45820142]
[1773618510551,4.31581803,2175.2,2174.6,0.57456433]
[1773618510745,4.31581803,2175.2,2174.5,0.00427891]
[1773618511146,4.31581803,2175.2,2174.6,7.45820142]
[1773618511351,4.31581803,2175.2,2174.5,0.00427891]
[1773618512048,4.31581803,2175.2,2174.5,0.39134932]
[1773618512250,4.31581803,2175.2,2174.5,0.00427891]
[1773618512449,4.31581803,2175.2,2174.1,0.38850338]
[1773618512753,4.31581803,2175.2,2174.2,0.37384372]
[1773618513554,4.31581803,2175.2,2174.2,0.3781601]
[1773618514450,4.31581803,2175.2,2174.4,0.37642724]
[1773618514650,0.36688473,2175.4,2174.2,0.00431638]
[1773618514651,4.32089792,2175.6,2174.7,0.22988]
[1773618514946,2.47362705,2176.2,2174.7,0.22988]
[1773618514947,4.32089792,2176.1,2174.8,7.83462866]
[1773618515151,4.32089792,2175.5,2174.8,0.37642724]
[1773618515554,4.32089792,2175.5,2174.2,0.00431638]
[1773618515753,4.32089792,2175.5,2174.3,0.31404227]
[1773618515944,4.32508943,2175.5,2174.6,7.77224369]
[1773618516162,4.32508943,2175.5,2174.7,0.31404227]
[1773618516654,4.32508943,2175.5,2174.9,7.73157589]
[1773618516850,4.32508943,2175.5,2174.8,0.27337447]
[1773618517457,4.32508943,2175.5,2175.1,0.24219739]
[1773618517658,4.36695565,2175.9,2175.1,0.24219739]
[1773618517949,4.36695565,2175.9,2174.6,0.23800588]
[1773618518157,4.36695565,2175.9,2174.8,0.23800588]
[1773618518353,4.73648297,2175.9,2174.8,0.23800588]
[1773618518658,4.74111002,2175.9,2174.9,7.68125084]
[1773618518854,4.74111002,2175.9,2174.9,0.22304942]
[1773618519052,4.74111002,2175.9,2175.2,0.22304942]
[1773618519753,4.74111002,2175.9,2175.2,7.68125084]
[1773618520153,4.74111002,2175.9,2175.2,0.22304942]
[1773618520649,4.74111002,2175.9,2175.0,0.26563089]
[1773618521552,4.74111002,2175.9,2175.1,7.7660791]
[1773618521751,4.74111002,2175.9,2175.1,0.30787768]
[1773618521952,4.74111002,2175.9,2175.1,7.7660791]
[1773618522256,4.74111002,2175.9,2175.1,0.30787768]
[1773618523157,4.74111002,2175.9,2175.1,7.45820142]
[1773618523458,4.74111002,2175.9,2174.6,0.29849028]
[1773618523651,4.74111002,2175.9,2174.6,7.7566917]
[1773618523846,9.8,2175.8,2174.6,0.29849028]
[1773618524046,4.30476516,2175.7,2174.6,0.29849028]
[1773618524249,4.30476516,2175.7,2174.7,7.45820142]
[1773618524451,4.30476516,2175.7,2174.6,0.29849028]
[1773618524649,4.30573926,2175.6,2174.5,0.22989]
[1773618524853,4.30573926,2175.5,2174.4,0.26995906]
[1773618525050,4.30573926,2175.5,2174.4,7.72816048]
[1773618525557,4.30573926,2175.5,2174.4,0.26995906]
[1773618525858,4.30573926,2175.5,2174.2,0.26192967]
[1773618526552,4.30573926,2175.5,2174.4,0.24377985]
[1773618526852,4.30573926,2175.5,2174.2,0.00431638]
[1773618527051,4.30573926,2175.5,2174.3,7.70198127]
[1773618527253,4.30573926,2175.5,2174.3,0.24377985]
[1773618528156,4.30573926,2175.5,2174.4,0.23016396]
[1773618528655,4.30573926,2175.5,2174.5,7.67087839]
[1773618528854,4.30573926,2175.5,2174.5,0.21267697]
[1773618529251,4.30573926,2175.5,2174.5,7.67087839]
[1773618529661,4.30573926,2175.5,2174.5,0.21267697]
[1773618530056,4.30573926,2175.5,2174.5,7.67087839]
[1773618530259,4.36673408,2175.4,2174.5,0.21267697]
[1773618530558,4.36673408,2175.4,2174.5,7.67087839]
[1773618530756,4.36673408,2175.4,2174.5,0.21267697]
[1773618531059,4.36673408,2175.4,2174.5,7.67087839]
[1773618531261,4.36673408,2175.4,2174.5,0.21267697]
[1773618531759,4.36673408,2175.4,2174.6,7.45820142]
[1773618531959,4.36673408,2175.4,2174.2,0.00431638]
[1773618532159,4.36673408,2175.4,2174.3,7.45820142]
[1773618532459,4.36673408,2175.4,2174.2,0.05203941]
[1773618532660,4.36673408,2175.4,2174.3,7.45820142]
[1773618532860,4.36673408,2175.4,2174.2,0.05203941]
[1773618533156,4.36673408,2175.4,2174.4,7.45820142]
[1773618533364,4.36673408,2175.4,2174.2,0.05203941]
[1773618533661,4.37379217,2175.1,2174.3,7.45820142]
[1773618533858,4.37379217,2175.1,2174.2,0.00431638]
[1773618534260,4.37379217,2175.1,2174.4,7.45820142]
[1773618534658,4.37379217,2175.1,2174.5,7.45820142]
[1773618534858,4.37379217,2175.1,2174.2,0.00431638]
[1773618535059,4.37379217,2175.1,2173.5,1.21858594]
[1773618535259,4.37156266,2174.9,2173.6,0.22999]
[1773618535454,4.37156266,2174.9,2174.1,0.50886847]
[1773618535962,4.37156266,2174.9,2174.1,0.51454886]
[1773618536660,4.32038854,2175.3,2174.3,0.59794178]
[1773618538363,4.34400686,2175.6,2174.7,0.5239331]
[1773618538659,4.34400686,2175.5,2174.7,0.5239331]
[1773618541071,10.17415437,2175.9,2174.9,0.46803521]
[1773618541072,4.35874798,2175.7,2174.9,0.46803521]
[1773618541567,4.35874798,2175.7,2175.1,0.29812563]
[1773618542667,4.35874798,2175.7,2174.4,0.2299]
[1773618542964,4.35874798,2175.7,2174.9,0.22985]
[1773618543463,4.62178032,2175.9,2174.9,0.22985]
[1773618543669,0.00462705,2175.9,2174.9,0.22985]
[1773618544361,4.61715327,2176.1,2174.9,0.22985]
[1773618544566,4.61742318,2176.3,2174.9,0.22985]
[1773618544764,4.61742318,2176.3,2175.4,0.2298]
[1773618545073,4.61742318,2176.6,2175.4,0.2298]
[1773618545461,4.62069595,2176.6,2175.4,0.2298]
[1773618552069,4.62069595,2176.6,2175.8,0.22975]
[1773618552270,4.62069595,2176.6,2175.8,0.23351461]
[1773618552572,4.58166039,2177.3,2176.3,0.2297]
[1773618553370,4.58732322,2177.3,2176.3,0.2297]
[1773618561582,4.58732322,2177.3,2175.9,0.22975]
[1773618563991,4.58685796,2177.1,2175.8,0.00376461]
[1773618564586,4.58685796,2177.1,2175.9,0.22975]
[1773618574287,4.55629137,2176.9,2175.9,0.22975]
[1773618575191,4.55629137,2176.9,2175.8,0.00376461]
[1773618575496,4.55713148,2176.7,2175.4,0.2298]
[1773618575696,4.55524918,2176.5,2174.9,0.22985]
[1773618576092,4.55524918,2176.5,2175.3,0.22981]
[1773618576491,4.55524918,2176.5,2175.3,0.23344145]
[1773618579096,4.55524918,2176.5,2175.7,0.22976]
[1773618582195,4.55524918,2176.5,2175.3,0.00363145]
[1773618583103,4.55524918,2176.5,2175.4,0.2298]
[1773618584303,4.55524918,2176.5,2175.8,0.22975]
[1773618592808,13.60525348,2177.3,2175.5,1.51533696]
[1773618592809,3.91850916,2177.2,2175.5,1.51533696]
[1773618593603,3.91850916,2177.2,2176.2,2.40223663]
[1773618593802,3.91850916,2177.2,2176.3,2.63194663]
[1773618594608,1.58191916,2177.2,2176.7,4.50488057]
[1773618594809,3.64885659,2177.2,2176.7,4.50488057]
[1773618597012,0.00566283,2177.3,2176.7,4.50488057]
[1773618597502,4.03828113,2177.2,2176.7,4.50488057]
[1773618600311,4.03828113,2177.2,2176.7,0.22966]
[1773618600611,4.03828113,2177.2,2176.5,4.27522057]
[1773618601610,4.03828113,2177.2,2175.6,4.27522057]
[1773618601810,4.03828113,2177.0,2175.6,4.27522057]
[1773618602404,4.03828113,2177.0,2175.7,4.50499057]
[1773618613820,4.03828113,2177.0,2174.3,13.69608]
[1773618613821,4.03828113,2175.7,2174.6,4.27522057]
[1773618614323,4.03828113,2175.7,2174.4,4.27522057]
[1773618614526,4.03828113,2175.7,2174.0,4.27522057]
[1773618614727,4.03828113,2175.3,2174.0,4.28104632]
[1773618614924,4.03828113,2174.9,2174.0,4.28104632]
[1773618615122,4.03828113,2174.9,2174.0,0.00582575]
[1773618615325,4.03828113,2174.9,2174.0,4.28104632]
[1773618617920,4.03828113,2174.9,2174.2,4.27522057]
[1773618618126,13.351,2175.6,2174.2,4.27522057]
[1773618618127,4.03828113,2175.5,2174.2,4.27522057]
[1773618620629,4.03828113,2175.4,2174.0,4.28104632]
[1773618621425,4.03828113,2175.4,2174.0,0.00582575]
[1773618622428,4.03828113,2175.4,2174.0,4.20143047]
[1773618623432,4.03828113,2175.4,2174.0,0.00582575]
[1773618623633,4.03828113,2175.4,2174.0,4.20143047]
[1773618624126,4.26809113,2175.4,2174.0,4.20143047]
[1773618624332,4.01449674,2175.0,2174.0,0.00582575]
[1773618625535,4.01449674,2175.0,2174.0,4.20143047]
[1773618626131,4.01449674,2174.6,2173.6,4.19560472]
[1773618627135,4.01449674,2174.6,2173.6,0.00441316]
[1773618628136,4.01449674,2174.3,2173.2,4.19560472]
[1773618628324,4.01449674,2174.3,2172.9,0.23006]
[1773618628325,4.01449674,2174.3,2173.0,4.19560472]
[1773618629131,4.01449674,2174.3,2173.0,4.20100354]
[1773618629634,2.47078195,2174.4,2172.7,4.19560472]
[1773618629635,4.01449674,2173.9,2172.7,4.19560472]
[1773618629838,4.01449674,2173.5,2172.5,4.19560472]
[1773618630729,4.01981099,2173.5,2172.5,4.2015523]
[1773618633131,0.00531425,2173.5,2172.7,4.19560472]
[1773618633335,0.00531425,2173.5,2172.9,4.19560472]
[1773618635229,0.00531425,2173.5,2173.1,4.19560472]
[1773618635729,4.01981099,2173.5,2173.1,4.19560472]
[1773618637437,0.00531425,2173.5,2173.1,4.19560472]
[1773618637636,4.01981099,2173.5,2173.1,4.19560472]
[1773618638736,0.00531425,2173.5,2173.1,4.19560472]
[1773618638929,4.01449674,2173.7,2173.1,4.19560472]
[1773618639129,4.01449674,2174.5,2173.1,4.19560472]
[1773618639330,4.01449674,2174.4,2173.2,0.23004]
[1773618639534,4.01449674,2174.4,2173.3,4.19560472]
[1773618639730,4.01449674,2174.0,2172.7,4.19560472]
[1773618639929,4.01449674,2173.8,2172.7,4.19560472]
[1773618640129,4.01449674,2173.8,2172.6,0.23009]
[1773618640130,4.01449674,2173.8,2172.6,4.42569472]
[1773618640439,4.01449674,2173.8,2173.2,4.19560472]
[1773618640640,4.01794857,2174.0,2173.2,4.19560472]
[1773618641044,0.00345183,2174.0,2173.4,4.19560472]
[1773618641344,4.01794857,2174.0,2173.4,4.19560472]
[1773618641745,4.01449674,2174.2,2173.6,4.19560472]
[1773618642339,4.01449674,2174.9,2173.6,4.19560472]
[1773618642938,4.01963719,2174.9,2173.6,4.19560472]
[1773618646242,4.01963719,2174.9,2173.8,4.19560472]
[1773618646439,4.01963719,2174.9,2174.0,4.19560472]
[1773618646636,4.01963719,2174.9,2173.9,4.42556472]
[1773618647242,4.01963719,2174.9,2173.9,4.19560472]
[1773618647441,4.01963719,2174.9,2173.5,4.19560472]
[1773618649644,4.01449674,2174.8,2173.5,4.19560472]
[1773618651049,4.01449674,2174.8,2173.7,4.19560472]
[1773618652351,3.97157327,2174.2,2173.1,3.94452069]
[1773618656859,3.97157327,2174.2,2173.3,4.20551194]
[1773618658758,3.97157327,2174.2,2172.8,4.20551194]
[1773618660461,4.06200431,2174.1,2172.8,4.20551194]
[1773618660863,4.06200431,2173.8,2172.8,4.20551194]
[1773618661162,4.06200431,2173.4,2172.5,0.00594758]
[1773618661462,4.06200431,2173.4,2172.3,2.10520686]
[1773618662254,4.06200431,2173.4,2172.3,2.13739953]
[1773618662460,5.62367102,2173.3,2172.3,2.13739953]
[1773618662666,4.06200431,2173.2,2172.3,2.13739953]
[1773618665868,0.00541575,2173.3,2171.6,0.23019]
[1773618665869,4.06200431,2173.0,2172.0,2.46100718]
[1773618666267,0.00541575,2173.3,2171.2,2.46100718]
[1773618666268,4.06200431,2172.6,2171.2,2.46100718]
[1773618666471,4.06200431,2172.5,2171.2,2.46100718]
[1773618666867,4.06200431,2172.5,2171.2,2.46479421]
[1773618670566,4.41840223,2172.5,2171.4,2.58175502]
[1773618670765,4.06200431,2172.4,2171.4,2.58175502]
[1773618672070,4.06200431,2172.4,2171.6,2.57758132]
[1773618672475,4.06200431,2172.4,2171.5,2.88814931]
[1773618672674,4.06200431,2172.4,2171.3,2.65792931]
[1773618672969,4.06200431,2172.4,2171.2,2.66171634]
[1773618673773,4.06200431,2172.4,2171.2,2.66201505]
[1773618676376,4.06200431,2172.4,2171.2,0.00378703]
[1773618676782,4.06200431,2172.2,2171.2,2.63747718]
[1773618677274,4.06200431,2172.1,2171.2,2.63747718]
[1773618677579,4.06200431,2172.1,2171.2,0.00378703]
[1773618677974,4.06200431,2172.1,2170.7,0.23029]
[1773618677975,4.06200431,2172.1,2170.7,2.66982212]
[1773618679078,4.06200431,2171.9,2170.7,2.67523669]
[1773618679580,4.06200431,2172.1,2171.1,2.34486734]
[1773618680272,4.06200431,2172.1,2171.3,2.39369227]
[1773618681474,4.06200431,2172.1,2171.1,2.40545936]
[1773618681671,4.06200431,2172.1,2170.9,2.40545936]
[1773618685180,4.06200431,2172.1,2170.7,2.62639259]
[1773618686079,4.30327868,2171.9,2170.7,0.00541457]
[1773618686382,4.30327868,2171.9,2170.7,2.39184933]
[1773618686880,4.30327868,2171.7,2170.7,0.00541457]
[1773618687075,4.30327868,2171.6,2170.7,0.00541457]
[1773618687279,4.30327868,2171.6,2170.3,0.67161281]
[1773618687485,4.30327868,2171.6,2170.3,3.05024732]
[1773618687884,4.30327868,2171.4,2170.3,3.05024732]
[1773618688380,4.30327868,2171.4,2170.3,0.67558999]
[1773618688685,9.8,2171.5,2169.8,2.37698848]
[1773618688686,4.30327868,2171.2,2169.8,2.37698848]
[1773618688885,4.30327868,2171.2,2169.7,2.60739848]
[1773618689484,4.30327868,2171.2,2169.7,2.61239523]
[1773618690285,4.30327868,2170.9,2169.7,0.00499675]
[1773618690485,4.30327868,2170.7,2169.7,0.00499675]
[1773618690884,4.30327868,2170.7,2169.7,2.4531943]
[1773618691883,4.30327868,2171.1,2169.9,2.44381882]
[1773618692185,11.28875623,2171.5,2169.7,0.00499675]
[1773618692186,4.30327868,2171.6,2170.3,2.44381882]
[1773618692885,4.30327868,2171.6,2170.5,2.49633073]
[1773618694393,4.30327868,2171.6,2170.7,1.95093445]
[1773618696789,0.00481458,2171.7,2170.7,1.95093445]
[1773618696991,4.30327868,2172.4,2171.3,1.86369607]
[1773618697286,4.30327868,2172.4,2170.9,1.86369607]
[1773618697993,4.30798358,2172.4,2171.1,1.78520537]
[1773618698888,4.30798358,2172.4,2171.3,1.74588372]
[1773618699697,0.0047049,2172.4,2171.5,1.77659088]
[1773618700294,4.30798358,2172.4,2171.5,1.77659088]
[1773618710399,4.30798358,2172.4,2171.0,1.72982708]
[1773618710596,4.66190097,2172.6,2171.4,1.7253853]
[1773618710797,4.66190097,2172.6,2171.8,1.7206804]
[1773618710994,4.30327868,2173.4,2172.0,1.7206804]
[1773618711204,4.30327868,2173.2,2172.0,1.7206804]
[1773618712204,4.3087904,2173.2,2172.0,1.7206804]
[1773618713907,4.67827107,2173.2,2172.0,1.7206804]
[1773618714308,4.3087904,2173.2,2172.2,1.77618587]
[1773618714500,0.00551172,2173.2,2172.4,1.77179312]
[1773618714703,4.09939555,2173.2,2172.4,1.77179312]
[1773618718516,4.09939555,2173.2,2172.2,1.76983655]
[1773618719309,4.09939555,2173.2,2171.8,1.76983655]
[1773618719915,4.09939555,2173.2,2172.0,1.76533344]
[1773618721709,4.09939555,2173.2,2171.4,1.68692755]
[1773618722107,4.32943555,2173.2,2171.4,1.68692755]
[1773618722811,4.09388383,2172.6,2171.4,1.68692755]
[1773618725716,4.09388383,2172.6,2171.6,1.74921561]
[1773618726316,4.09388383,2172.6,2171.2,1.74921561]
[1773618726518,4.09388383,2172.6,2171.6,1.74725141]
[1773618727416,4.09388383,2172.6,2171.7,0.23019]
[1773618727615,4.09388383,2172.6,2171.8,1.74268236]
[1773618729515,4.09388383,2173.1,2171.8,1.74268236]
[1773618729719,4.09388383,2173.1,2172.0,1.72716583]
[1773618729917,4.09388383,2173.1,2172.2,1.72716583]
[1773618732012,4.09388383,2173.1,2171.5,0.23021]
[1773618732218,4.09388383,2172.9,2171.6,1.16582198]
[1773618732816,4.09388383,2172.7,2171.1,1.15829468]
[1773618733014,4.09388383,2172.5,2171.1,1.15829468]
[1773618733921,4.09388383,2172.5,2171.1,1.15649468]
[1773618734417,4.09388383,2172.5,2171.3,1.15174704]
[1773618735518,4.09388383,2172.5,2171.4,0.23023]
[1773618735723,4.09388383,2172.5,2171.5,1.12160921]
[1773618736222,4.09388383,2172.5,2171.4,0.23023]
[1773618736223,4.09388383,2173.1,2171.9,1.12160921]
[1773618736625,4.09388383,2173.1,2172.1,1.09765695]
[1773618737420,4.09388383,2173.1,2172.3,1.05427275]
[1773618739528,4.09388383,2173.1,2171.8,1.00341884]
[1773618741526,4.09388383,2173.1,2172.2,0.95592021]
[1773618742128,4.09388383,2173.1,2171.5,2.71509789]
[1773618742129,4.09388383,2173.1,2172.4,0.93478479]
[1773618742325,4.09388383,2173.1,2172.2,0.93864828]
[1773618743027,4.09388383,2173.1,2172.4,0.9135063]
[1773618743726,0.00551172,2173.2,2172.4,0.9135063]
[1773618744030,4.14962683,2173.2,2172.0,0.89066987]
[1773618744930,4.14962683,2173.2,2171.8,0.86328371]
[1773618745130,4.14411511,2173.0,2171.7,0.23019]
[1773618745431,4.14411511,2173.0,2171.8,0.86328371]
[1773618745831,4.14411511,2173.0,2171.9,0.23017]
[1773618746132,4.14411511,2173.0,2172.0,0.84127446]
[1773618746632,4.14411511,2173.0,2172.2,0.81666559]
[1773618747932,4.14962683,2173.2,2172.4,0.73647384]
[1773618748232,4.14962683,2173.2,2172.4,0.73367384]
[1773618751232,4.14962683,2173.2,2172.2,0.66391962]
[1773618751432,4.14962683,2173.2,2171.9,0.65877315]
[1773618753638,4.14411511,2173.1,2171.7,0.86219965]
[1773618753836,4.14411511,2173.1,2171.7,0.23019]
[1773618754934,4.14411511,2173.1,2171.8,0.61170143]
[1773618755140,4.14411511,2173.1,2171.9,0.23017]
[1773618755338,4.14411511,2173.1,2172.0,0.61170143]
[1773618755540,4.14411511,2173.1,2171.9,0.23017]
[1773618758137,4.14411511,2173.1,2171.6,0.69863054]
[1773618759237,4.14411511,2173.1,2171.5,0.23312245]
[1773618759238,4.14411511,2173.1,2171.8,0.78337934]
[1773618759641,4.14411511,2173.1,2171.9,0.23017]
[1773618759839,4.14411511,2173.1,2172.0,0.88241169]
[1773618760441,0.00551172,2173.2,2172.6,0.86526194]
[1773618760636,0.00551172,2173.2,2172.6,0.86927134]
[1773618760842,3.57686438,2173.2,2172.6,0.0040094]
[1773618761347,3.57686438,2173.2,2172.6,0.8938175]
[1773618761549,3.57135266,2174.0,2172.6,0.8938175]
[1773618762344,3.57135266,2174.0,2172.8,1.34040536]
[1773618762545,3.95080158,2174.0,2172.8,1.34040536]
[1773618762746,3.95080158,2174.0,2172.7,0.23009]
[1773618762947,3.95080158,2174.0,2172.7,1.58351316]
[1773618763149,3.5771743,2174.0,2172.7,1.58351316]
[1773618763853,3.5771743,2174.0,2173.3,1.27022646]
[1773618764343,3.5771743,2174.0,2173.2,1.54210786]
[1773618766051,3.5771743,2174.0,2173.2,0.23003]
[1773618767252,3.5771743,2174.0,2172.9,1.31479706]
[1773618769753,3.5771743,2174.0,2172.6,0.0040094]
[1773618769952,3.5771743,2174.0,2172.6,1.26608525]
[1773618770353,3.5771743,2174.0,2172.8,1.26207585]
[1773618771055,3.5771743,2174.0,2172.6,0.0040094]
[1773618771558,3.57135266,2173.8,2172.6,0.0040094]
[1773618773655,3.57135266,2173.8,2172.6,0.0026094]
[1773618777158,3.57135266,2173.8,2172.6,1.33844865]
[1773618778754,3.57135266,2173.8,2172.6,0.0026094]
[1773618779655,3.57135266,2173.8,2172.6,1.06209196]
[1773618782452,3.57135266,2173.8,2172.6,1.06019196]
[1773618783355,3.57135266,2173.8,2172.8,1.04488957]
[1773618783659,3.57135266,2173.8,2173.0,1.02861433]
[1773618784253,3.57135266,2173.8,2173.1,1.28638506]
[1773618784457,3.50778294,2174.0,2173.1,1.28638506]
[1773618785762,3.50778294,2174.0,2172.9,1.06467233]
[1773618786367,3.50778294,2174.0,2172.9,1.29473233]
[1773618788461,3.50778294,2174.0,2173.4,1.04746645]
[1773618788659,3.5019613,2174.2,2173.4,1.04746645]
[1773618789763,3.50766092,2174.2,2173.4,1.04746645]
[1773618790663,3.50766092,2174.2,2173.3,0.23002]
[1773618790858,3.50766092,2174.2,2173.3,1.25237045]
[1773618792467,3.50766092,2174.2,2173.0,1.0641154]
[1773618794269,3.50766092,2174.2,2172.9,0.23027191]
[1773618794270,3.50766092,2174.2,2173.2,1.04953329]
[1773618794470,3.50766092,2174.2,2173.4,1.05394085]
[1773618794667,3.50766092,2174.2,2173.3,0.23003]
[1773618794874,3.50766092,2174.2,2172.9,1.26938333]
[1773618795470,3.50766092,2174.2,2173.0,1.24831811]
[1773618795873,3.50766092,2174.2,2172.9,0.23027191]
[1773618796079,3.50766092,2174.2,2172.8,1.01825811]
[1773618797077,3.50766092,2174.2,2173.0,0.99764324]
[1773618797278,3.50766092,2174.2,2172.6,0.0007094]
[1773618797279,3.50766092,2174.2,2173.2,0.99554324]
[1773618797576,3.50766092,2174.2,2172.6,0.0007094]
[1773618797577,3.50766092,2174.2,2173.4,1.00595019]
[1773618798777,3.50766092,2174.2,2173.2,0.98553269]
[1773618799082,3.50766092,2174.2,2172.9,0.98553269]
[1773618799882,3.50766092,2174.2,2172.8,0.45609433]
[1773618800274,3.50766092,2174.2,2172.8,1.43839634]
[1773618801986,3.50766092,2174.2,2173.0,1.1558306]
[1773618807591,0.00569962,2174.2,2173.0,0.9257706]
[1773618807796,0.66690236,2174.2,2173.6,0.79766297]
[1773618807991,0.66690236,2174.2,2173.2,3.38483436]
[1773618808188,0.59747783,2174.2,2173.4,3.38483436]
[1773618808392,0.08005512,2175.3,2173.6,3.38483436]
[1773618808393,3.25539274,2175.2,2173.6,3.38483436]
[1773618808592,3.25539274,2175.2,2173.8,3.38483436]
[1773618808897,3.25897016,2175.2,2174.2,3.38483436]
[1773618809092,3.25897016,2175.2,2174.2,3.39032485]
[1773618809693,0.00357742,2175.2,2174.4,3.38483436]
[1773618809999,0.00357742,2175.2,2174.6,3.38483436]
[1773618811100,3.25539274,2175.5,2174.6,3.38483436]
[1773618812194,3.26093565,2175.5,2174.6,3.38483436]
[1773618814696,3.26093565,2175.5,2174.4,3.38483436]
[1773618817501,3.26093565,2175.5,2174.2,3.39032485]
[1773618817698,3.26093565,2175.5,2174.2,0.00549049]
[1773618820300,3.26093565,2175.5,2174.2,3.39032485]
[1773618820803,3.26093565,2175.5,2174.2,0.00549049]
[1773618821502,3.25539274,2175.3,2173.9,3.38483436]
[1773618821895,3.25539274,2175.3,2173.7,3.38483436]
[1773618822495,3.25539274,2175.3,2173.7,3.3884844]
[1773618823399,3.25539274,2175.3,2173.9,3.38483436]
[1773618823596,3.25539274,2175.3,2173.9,3.38343436]
[1773618827702,3.25539274,2175.3,2174.1,3.38483436]
[1773618828106,3.25539274,2175.3,2174.3,3.38483436]
[1773618829608,3.25539274,2175.3,2174.1,3.38483436]
[1773618830407,3.25539274,2175.3,2173.8,3.38483436]
[1773618831006,3.25539274,2175.3,2174.0,3.38483436]
[1773618831304,3.25539274,2175.3,2174.2,3.38483436]
[1773618832208,3.25539274,2175.3,2174.2,3.38273436]
[1773618832410,3.25539274,2175.3,2174.4,3.33587349]
[1773618832711,3.25539274,2175.3,2174.2,3.33587349]
[1773618837009,3.25539274,2175.3,2174.2,3.56579349]
[1773618839615,3.31363831,2176.0,2174.7,0.22987]
[1773618839811,3.31363831,2176.0,2174.8,3.03315343]
[1773618840116,3.67478926,2176.0,2174.8,3.03315343]
[1773618840314,3.67478926,2176.0,2174.4,3.03315343]
[1773618840515,3.31742428,2176.0,2174.6,3.03315343]
[1773618842013,3.68829393,2176.0,2174.6,3.03315343]
[1773618843921,3.31363831,2175.8,2174.6,3.03315343]
[1773618846922,3.31363831,2175.8,2174.6,2.99835343]
[1773618848221,3.31363831,2175.8,2174.8,3.03315343]
[1773618849216,3.31363831,2175.8,2174.3,0.22912075]
[1773618849217,3.31363831,2175.8,2175.0,3.03315343]
[1773618849421,3.31363831,2175.8,2174.8,3.03315343]
[1773618849922,3.31363831,2175.8,2174.5,3.03315343]
[1773618853019,3.31363831,2175.8,2174.3,0.22912075]
[1773618853020,3.31363831,2175.8,2174.7,3.03315343]
[1773618856425,3.31363831,2175.7,2174.5,3.00170658]
[1773618857930,3.31363831,2175.7,2174.7,2.95299249]
[1773618858922,3.31363831,2175.7,2174.4,2.9314493]
[1773618859231,3.31363831,2175.5,2174.4,2.9314493]
[1773618860632,3.31363831,2175.5,2174.4,3.1613493]
[1773618862128,3.31363831,2175.5,2174.4,2.9314493]
[1773618866133,3.31363831,2175.5,2174.1,0.23430297]
[1773618866339,3.31363831,2175.5,2173.9,3.28628432]
[1773618867341,3.31363831,2175.5,2174.1,2.81316415]
[1773618867846,3.31363831,2175.5,2174.3,2.79787188]
[1773618870142,3.31363831,2175.5,2174.5,2.7663496]
[1773618872141,3.31363831,2175.5,2174.5,2.7137496]
[1773618874740,3.31363831,2175.5,2174.4,2.9195935]
[1773618874942,3.31363831,2175.5,2173.6,16.93042164]
[1773618874943,3.31363831,2175.5,2174.1,0.22994]
[1773618875141,3.31363831,2175.5,2174.6,2.6896835]
[1773618875842,3.31363831,2175.5,2174.8,2.67541799]
[1773618876042,2.91671893,2175.9,2174.8,2.67541799]
[1773618877543,2.91671893,2175.9,2175.0,2.66856539]
[1773618877742,2.91671893,2175.9,2175.2,2.66856539]
[1773618877937,0.00378597,2176.0,2175.2,2.66856539]
[1773618878541,2.9205049,2176.0,2175.2,2.66856539]
[1773618879746,2.9205049,2176.0,2175.1,0.22984]
[1773618880245,2.9205049,2176.0,2175.1,2.55240854]
[1773618885451,2.9205049,2176.0,2175.3,2.51614041]
[1773618885651,2.9205049,2176.0,2175.3,2.52078723]
[1773618889849,2.9205049,2176.0,2175.3,0.00464682]
[1773618890654,2.9205049,2176.0,2175.3,0.00274682]
[1773618891452,2.9205049,2176.0,2175.0,2.46871113]
[1773618891658,2.9205049,2176.0,2174.7,2.5058211]
[1773618892759,2.9205049,2176.0,2174.7,2.51136907]
[1773618895358,2.9205049,2176.0,2175.1,2.46867239]
[1773618895560,2.9205049,2176.0,2175.0,0.22985]
[1773618895561,2.9205049,2176.0,2174.8,2.46080874]
[1773618895951,3.1502449,2176.0,2174.7,2.46635671]
[1773618897660,3.1502449,2176.0,2174.7,2.46375671]
[1773618897864,3.1502449,2176.0,2174.7,0.00294797]
[1773618898360,2.88555784,2175.7,2174.7,0.00294797]
[1773618902059,2.88555784,2175.7,2174.7,2.39973942]
[1773618902568,2.88555784,2175.7,2174.9,2.38964603]
[1773618905756,0.00378597,2176.0,2175.1,2.38687988]
[1773618906657,2.88555784,2176.3,2175.1,2.38687988]
[1773618907166,2.88555784,2176.3,2175.5,2.46135251]
[1773618907562,2.88903476,2176.3,2175.5,2.46135251]
[1773618909566,2.88555784,2176.1,2174.9,2.39353939]
[1773618909862,2.88555784,2176.1,2174.7,2.39648736]
[1773618910458,2.88555784,2176.1,2174.7,2.62635736]
[1773618915764,2.88555784,2176.1,2174.7,2.39648736]
[1773618915971,2.88555784,2175.9,2174.7,0.00294797]
[1773618917363,2.88555784,2175.9,2174.7,2.3661275]
[1773618917969,2.88555784,2175.9,2174.7,0.00294797]
[1773618918371,0.22974,2176.0,2174.7,0.00294797]
[1773618918372,2.88555784,2175.7,2174.7,0.00294797]
[1773618921874,2.69503049,2175.5,2174.2,12.52207146]
[1773618922074,2.69503049,2175.5,2174.2,2.34707146]
[1773618922471,2.69503049,2175.3,2174.2,2.34707146]
[1773618922676,2.69503049,2175.3,2174.3,2.33779213]
[1773618922872,2.69503049,2175.3,2174.4,2.33779213]
[1773618925678,2.69503049,2175.3,2174.3,0.00531856]
[1773618926077,2.69503049,2175.3,2174.3,2.3256661]
[1773618927380,2.69503049,2175.3,2174.4,10.175]
[1773618927880,2.69503049,2175.3,2174.3,0.00531856]
[1773618928074,2.69503049,2175.1,2174.3,0.00531856]
[1773618929479,2.69503049,2175.1,2173.9,2.85485902]
[1773618930583,2.69503049,2175.1,2173.9,2.86045708]
[1773618931581,4.82977,2175.8,2174.4,2.62490902]
[1773618931781,2.69503049,2175.6,2174.4,2.62490902]
[1773618932782,2.69503049,2175.6,2174.6,2.62490902]
[1773618935583,2.69503049,2175.6,2174.1,2.62490902]
[1773618935983,2.69503049,2175.6,2174.1,2.85592404]
[1773618937396,2.69503049,2175.6,2174.1,2.62490902]
[1773618941777,2.69503049,2175.6,2174.2,0.22993]
[1773618941978,2.69503049,2175.6,2174.5,2.62490902]
[1773618945186,2.69503049,2175.6,2174.5,2.62190902]
[1773618947684,2.69503049,2176.0,2174.7,2.62490902]
[1773618950091,2.69503049,2176.0,2174.9,2.62490902]
[1773618950488,2.69503049,2176.0,2175.1,2.62490902]
[1773618950885,2.69503049,2176.0,2175.0,2.62490902]
[1773618951192,2.69503049,2176.0,2174.6,2.62490902]